[Event "FIDE Zonal 4-2 Open 2023"]
[Site "Dimbroko"]
[Date "2023.03.27"]
[Round "1.5"]
[White "Cogan, Nicolas"]
[Black "Egbe, Kossi Thierry"]
[Result "1-0"]
[ECO "E43"]
[WhiteElo "2013"]
[BlackElo "1740"]
[Annotator "TA"]
[PlyCount "85"]
[EventDate "2023.03.25"]
[EventType "swiss"]
[SourceTitle "playchess.com"]
[Source "ChessBase"]
[SourceQuality "1"]
[TimeControl "40/5400+30:1800+30"]

{[%evp 12,85,-5,-4,11,8,12,7,24,8,18,-3,-7,-16,-8,-28,10,0,25,20,70,51,75,65,89,88,164,175,255,239,247,233,246,266,269,258,253,243,390,377,333,211,253,235,225,240,383,305,937,870,947,936,1072,1071,1149,1112,1312,766,1057,991,1014,1006,1011,1008,926,1006,976,985,1720,1625,5812,4224,29982,29983,29979,29980]} 1. d4 {[%emt 0:00:04]} Nf6 {[%emt 0:00:31]} 2. c4 {[%emt 0:00:04]} e6 {[%emt 0:02:03]} 3. Nc3 {[%emt 0:00:07]} Bb4 {[%emt 0:00:08]} 4. e3 {[%emt 0:00:10]} b6 {[%emt 0:00:44]} 5. Bd3 {[%emt 0:00:23]} Bb7 {[%emt 0:00:43]} 6. f3 {[%emt 0:00:43]} c5 {[%emt 0:01:55]} 7. Nge2 {[%emt 0:00:29]} d5 {[%emt 0:02:38] E43: Nimzo-Indian: Rubinstein: 4...b6.} 8. O-O {[%emt 0:01:05]} O-O {[%emt 0:03:20]} 9. a3 {[%emt 0:05:26]} Ba5 {[%emt 0:04:35] The position is equal.} 10. cxd5 {[%emt 0:07:02]} exd5 {[%emt 0:04:46]} 11. Ng3 {[%emt 0:08:03]} Nc6 {[%emt 0:05:36] [#]} 12. Na4 $146 {[%emt 0:15:03]} ({Predecessor:} 12. Kh1 h6 13. Bc2 Ne7 14. Rb1 cxd4 15. Qxd4 Bxc3 16. Qxc3 Rc8 17. Qd2 Qc7 18. Bd3 {0-1 Sanz Losada,V (2075)-Jaroch,K (2254) POL-ch Rapid 2017 (7)}) 12... c4 {[%emt 0:06:22]} (12... cxd4 $2 13. b4 $16) 13. Bc2 {[%emt 0:00:27]} (13. b4 $5 {[%cal Rd3c2]}) 13... Bc8 {[%emt 0:04:54]} (13... b5 $5 {[%cal Rb5a4]} 14. Nc5 Bc8 $11) 14. Bd2 {[%emt 0:08:13]} Bxd2 {[%emt 0:03:37]} 15. Qxd2 {[%emt 0:00:47]} h5 {[%emt 0:03:35]} (15... b5 $11 16. Nc5 Be6) 16. Qf2 {[%emt 0:06:10] White is more active.} Re8 {[%emt 0:08:38]} 17. Rfe1 {[%emt 0:15:37] White now steadily converts the win.} Qd6 {[%emt 0:13:54]} 18. Nc3 {[%emt 0:03:26]} Be6 {[%emt 0:02:58]} (18... Rb8 $16 {might work better.}) 19. Rad1 $18 {[%emt 0:00:22]} a6 {[%emt 0:01:45] [#]} (19... Red8 {was called for.} 20. e4 dxe4) 20. e4 $1 {[%emt 0:04:01][%cal Be3e4,Be4e5][%mdl 32] Hoping for e5.} Qf4 {[%emt 0:01:05]} 21. e5 {[%emt 0:01:39][%mdl 64] Deflection} Nd7 {[%emt 0:01:57]} 22. Nxh5 {[%emt 0:00:23]} Qh6 {[%emt 0:00:53]} 23. Ng3 {[%emt 0:00:55]} Ne7 {[%emt 0:01:02]} 24. f4 {[%emt 0:00:30] And now f5 would win.} g6 {[%emt 0:00:51]} (24... f5 $142 25. Nf1 Kf7) 25. f5 {[%emt 0:00:23]} gxf5 {[%emt 0:00:18]} 26. Bxf5 {[%emt 0:21:58]} Kg7 {[%emt 0:01:00]} 27. Rf1 {[%emt 0:00:00]} Rh8 {[%emt 0:01:02][%csl Gh8][%cal Rh6h2]} 28. h3 {[%emt 0:00:00] Threatens to win with Bxe6.} Rag8 {[%emt 0:00:51]} (28... Rhg8 $142 29. Qf4 Rae8) 29. Nce2 {[%emt 0:00:00][%cal Bc3e2,Be2f4,Bf4d5][%mdl 32] Bxe6 is the strong threat.} Kf8 $2 {[%emt 0:01:37]} (29... Rf8 30. Rc1 a5) 30. Bxe6 {[%emt 0:00:00][%mdl 64] Deflection} Qxe6 {[%emt 0:00:42]} 31. Nf4 {[%emt 0:00:00]} Qh6 {[%emt 0:01:40] [#]} 32. Nxd5 $1 {[%emt 0:00:00][%csl Gf1][%cal Rf2f7][%mdl 576] Discovered Attack} Qg6 {[%emt 0:02:45]} (32... Rh7 33. Nxe7) 33. Nf4 {[%emt 0:00:00]} Qh6 {[%emt 0:03:24]} 34. Nfh5 {[%emt 0:00:00][%csl Gf1][%cal Rf2f7]} Rh7 {[%emt 0:01:44]} 35. Qf3 {[%emt 0:00:00]} Qc6 {[%emt 0:01:20] Inhibits Qa8+.} 36. d5 {[%emt 0:00:00]} Qc5+ {[%emt 0:00:42]} 37. Kh1 {[%emt 0:00:00]} Nxe5 {[%emt 0:00:25]} 38. Qe4 {[%emt 0:00:00][%csl LRe5,LRh7]} N7g6 {[%emt 0:01:59]} 39. d6 {[%emt 0:00:00] Qa8+ would kill now.} Qc8 {[%emt 0:01:18] [#] Dodges Qa8} 40. d7 $1 {[%emt 0:01:22][%mdl 512]} Nxd7 {[%emt 0:03:10]} (40... Qd8 41. Nf6) 41. Qf5 {[%emt 0:32:27]} Ke7 {[%emt 0:34:43]} 42. Rfe1+ {[%emt 0:01:24]} Kd8 {[%emt 0:00:00]} 43. Nf6 {[%emt 0:00:00] An entertaining game by Cogan.   Weighted Error Value: White=0.15 (very precise) /Black=0.58} 1-0

[Event "FIDE Zonal 4-2 Open 2023"]
[Site "Dimbroko"]
[Date "2023.03.27"]
[Round "1.6"]
[White "Foday W. Kondoh"]
[Black "Barcon, Harmon"]
[Result "1/2-1/2"]
[ECO "D53"]
[WhiteElo "1727"]
[BlackElo "1928"]
[Annotator "TA"]
[PlyCount "76"]
[EventDate "2023.03.25"]
[EventType "swiss"]
[SourceTitle "playchess.com"]
[Source "ChessBase"]
[SourceQuality "1"]
[TimeControl "40/5400+30:1800+30"]

{[%evp 9,76,22,26,-2,3,0,32,35,40,44,49,48,53,-29,-21,-23,-16,-139,-131,-157,-147,-180,-161,-170,-79,-69,-48,-44,82,75,204,0,0,0,390,151,472,479,432,74,58,67,95,123,104,45,457,451,458,422,415,420,422,417,416,-15,-15,-121,0,0,0,0,0,0,0,0,0,0,0]} 1. d4 {[%emt 0:00:45]} d5 {[%emt 0:00:27]} 2. c4 {[%emt 0:00:55]} c6 {[%emt 0:00:17]} 3. Nf3 {[%emt 0:00:24]} Nf6 {[%emt 0:00:15]} 4. Nc3 {[%emt 0:00:38]} e6 {[%emt 0:00:43]} 5. Bg5 {[%emt 0:01:20]} Be7 {[%emt 0:01:52]} 6. c5 {[%emt 0:01:46] D53: Queen's Gambit Declined: 4 Bg5 Be7: Early deviations.} b6 {[%emt 0:06:08]} 7. b4 {[%emt 0:00:31]} bxc5 {[%emt 0:00:02]} 8. bxc5 {[%emt 0:00:23] White is slightly better.} Qa5 {[%emt 0:00:12]} 9. Bd2 {[%emt 0:00:53][%cal Oc3d5] Nxd5! is the strong threat.} Qc7 {[%emt 0:00:16]} 10. g3 {[%emt 0:02:44]} Nbd7 {[%emt 0:00:15] [#]} 11. Bh3 $146 {[%emt 0:03:16]} ({Better is} 11. Qa4 $14) ({Predecessor:} 11. Qa4 e5 12. Nxe5 Nxe5 13. Bf4 Nfd7 14. Bxe5 Nxe5 15. Nxd5 Qd7 16. Nxe7 Qxe7 17. Bg2 {1-0 Ovsepyan,A (2139)-Joeres,S (1961) GER-chT U16 Neumarkt in der Oberpfalz 2016 (1.1)}) 11... e5 $11 {[%emt 0:01:17]} 12. Bxd7+ {[%emt 0:19:55]} Nxd7 {[%emt 0:00:32]} 13. e3 {[%emt 0:00:28]} (13. O-O $11) 13... e4 $17 {[%emt 0:05:55]} 14. Ng1 {[%emt 0:03:22]} h5 {[%emt 0:00:50][%cal Bh7h5,Bh5h4][%mdl 32]} 15. f3 {[%emt 0:01:45]} h4 {[%emt 0:00:07]} 16. g4 {[%emt 0:05:34][%cal Bg3g4,Bg4g5][%mdl 32]} exf3 {[%emt 0:00:47]} (16... h3 $19 17. Qa4 (17. fxe4 $2 Bh4+ 18. Kf1 Ba6+ 19. Nge2 Nf6 $19) 17... Bh4+ 18. Kd1 Nf6) 17. Nxf3 {[%emt 0:00:55]} Nf6 {[%emt 0:00:28]} 18. Ne5 {[%emt 0:07:54] [#]} Bxc5 {[%emt 0:03:31]} 19. g5 $36 {[%emt 0:03:23][%cal Og5f6][%mdl 2048] White has strong initiative.} Nh5 {[%emt 0:07:36]} (19... Ng8 $16 {keeps fighting.}) 20. O-O $2 {[%emt 0:07:06]} (20. Rc1 $1 $18 {Hoping for Nxd5.} Be6 21. Ne4 dxe4 22. Rxc5) 20... Be6 $11 {[%emt 0:00:44] White must now prevent ...Bd6.} 21. Rc1 {[%emt 0:10:42]} Be7 $2 {[%emt 0:03:43][%mdl 8192]} (21... Qe7 $11 22. Rf2 Qxg5+ 23. Rg2 Qf6) 22. Qf3 $2 {[%emt 0:03:14]} (22. Nb5 $18 {and White stays clearly on top.} Qb6 23. Nc7+ Qxc7 24. Rxc6 Qxc6 25. Nxc6) 22... Bd8 {[%emt 0:11:21] [#]} (22... Bxg5 $16 23. Nb5 {[%mdl 64] Deflection} Qb8) 23. Nb5 $1 {[%emt 0:02:29][%mdl 512] A dynamic duo of knights.} Qe7 {[%emt 0:00:04] [#]} 24. Nd6+ {[%emt 0:07:55]} Qxd6 $16 {[%emt 0:01:51]} 25. Nxf7 {[%emt 0:01:22]} (25. Rxc6 $2 Qe7 26. e4 dxe4 27. Qxe4 O-O 28. Rxe6 (28. Qxh4 $2 g6 $19) 28... Qxe6 $19) 25... Qe7 {[%emt 0:00:06]} 26. Nxh8 {[%emt 0:01:46] White is much more active.} Qxg5+ {[%emt 0:00:03] [#]} 27. Kh1 {[%emt 0:01:23]} (27. Qg2 $1 $16) 27... Ng3+ $2 {[%emt 0:06:14][%mdl 8192]} 28. hxg3 $18 {[%emt 0:03:25]} hxg3 {[%emt 0:00:03] ( -> ...Qh4+)} 29. Kg1 {[%emt 0:03:47] White wants to mate with Qf8+.} (29. Rxc6 $2 {gets mated.} Qh4+ 30. Kg2 Qh2#) ({Not} 29. Qf8+ Kd7 30. Kg2 (30. Rf7+ Bxf7 31. Qxf7+ Be7 $15) 30... Qh5 31. Rf7+ (31. Qxg7+ Be7 $11) 31... Bxf7 32. Qxf7+ Qxf7 33. Nxf7 Bf6 $18) 29... Bf6 {[%emt 0:04:15]} 30. Rxc6 {[%emt 0:02:25]} Kd7 {[%emt 0:00:15] [#]} 31. Rxe6 $1 {[%emt 0:00:45]} Kxe6 {[%emt 0:00:46] [#]} 32. Ng6 {[%emt 0:00:13][%mdl 512]} Qxg6 $11 {[%emt 0:00:52]} 33. Kg2 {[%emt 0:00:02]} (33. e4 $11 Rh8 34. e5) 33... Qd3 {[%emt 0:03:24]} (33... Rb8 $17 {Strongly threatening ...Rb2.} 34. Qxg3 Qxg3+ 35. Kxg3 Rb2) 34. Qg4+ {[%emt 0:00:21] The position is equal.} Kf7 {[%emt 0:03:54]} 35. Qh5+ {[%emt 0:00:31]} Ke6 {[%emt 0:03:11]} 36. Qg4+ {[%emt 0:00:17]} Kf7 {[%emt 0:01:19]} 37. Qh5+ {[%emt 0:01:36]} Ke6 {[%emt 0:00:05]} 38. Qg4+ {[%emt 0:00:59]} Kf7 {[%emt 0:00:03] White used his chance. A fantastic game!   Weighted Error Value: White=0.56/Black=0.73} 1/2-1/2

[Event "FIDE Zonal 4-2 Open 2023"]
[Site "Dimbroko"]
[Date "2023.03.27"]
[Round "1.7"]
[White "Mambe, Lobognon Anderson Ol"]
[Black "Harold Evans"]
[Result "0-1"]
[ECO "D53"]
[WhiteElo "1916"]
[BlackElo "1714"]
[Annotator "TA"]
[PlyCount "110"]
[EventDate "2023.03.25"]
[EventType "swiss"]
[SourceTitle "playchess.com"]
[Source "ChessBase"]
[SourceQuality "1"]
[TimeControl "40/5400+30:1800+30"]

{[%evp 12,110,43,35,60,63,66,75,69,50,111,109,117,103,139,151,143,149,169,166,210,209,222,182,200,35,25,21,25,22,37,20,42,0,31,45,51,56,179,0,54,0,0,0,0,0,0,0,0,0,0,0,0,0,0,0,0,-58,-56,-76,-55,-45,0,-75,-76,-366,-377,-743,-510,-941,-887,-1502,-1143,-870,-431,-1392,-1861,-1488,-1382,-5214,-5052,-5043,-4935,-29982,-2025,-29980,-29980,-29984,-29985,-29985,-29986,-29986,-29987,-29987,-29988,-29988,-29989,-29989,-29988,-29988,-29989]} 1. d4 {[%emt 0:00:07]} d5 {[%emt 0:00:58]} 2. Nf3 {[%emt 0:00:22]} Nc6 {[%emt 0:00:23]} 3. c4 {[%emt 0:00:43]} e6 {[%emt 0:01:28]} 4. Nc3 {[%emt 0:00:18]} Nf6 {[%emt 0:00:31]} 5. Bg5 {[%emt 0:00:23][%cal Bc1g5,Bg5h4,Bh4g3][%mdl 32]} Be7 {[%emt 0:00:05]} 6. e3 {[%emt 0:00:27]} h6 {[%emt 0:00:28]} 7. Bh4 {[%emt 0:00:11]} a6 {[%emt 0:00:26] D53: Queen's Gambit Declined: 4 Bg5 Be7: Early deviations.} 8. a3 {[%emt 0:00:28]} dxc4 {[%emt 0:05:27]} 9. Bxc4 {[%emt 0:00:46] [#]} Nd5 $146 {[%emt 0:00:48] White is better.} ({Predecessor:} 9... O-O 10. O-O b5 11. Bd3 Bb7 12. Bc2 b4 13. Qd3 g6 14. Bxf6 Bxf6 15. Ne4 Be7 {½-½ Kantor,G (2352)-Cuhendi,S (2186) Budapest FS06 IM 2013 (7)}) 10. Bg3 {[%emt 0:01:59]} Nb6 {[%emt 0:01:28]} (10... Na5 $14 11. Bd3 Nxc3 12. bxc3 b6) 11. Ba2 $16 {[%emt 0:01:17]} Bd6 {[%emt 0:01:41]} 12. Ne4 {[%emt 0:02:20]} Be7 {[%emt 0:02:01]} 13. Qc2 {[%emt 0:00:57]} Nd5 {[%emt 0:01:18]} 14. Rc1 {[%emt 0:02:04]} f5 {[%emt 0:01:34]} 15. Nc5 {[%emt 0:03:32]} Bd6 {[%emt 0:05:18]} 16. e4 {[%emt 0:03:28]} fxe4 {[%emt 0:07:42]} 17. Qxe4 {[%emt 0:00:31]} Qe7 {[%emt 0:00:41]} 18. Bxd5 $2 {[%emt 0:05:32]} (18. O-O $18) 18... exd5 $14 {[%emt 0:02:16][%mdl 64] [#] Pin} 19. Qxe7+ {[%emt 0:00:23]} Kxe7 {[%emt 0:01:21]} 20. O-O {[%emt 0:00:54]} Bxg3 {[%emt 0:02:24]} 21. fxg3 {[%emt 0:00:21]} Kd6 {[%emt 0:01:08]} 22. Rfe1 {[%emt 0:03:46]} b6 {[%emt 0:00:38]} 23. Nd3 {[%emt 0:00:17] Excellent horsemanship.} Bb7 {[%emt 0:03:44]} 24. Nde5 {[%emt 0:01:25]} (24. Rc2 {keeps more tension.} Rhe8 25. Nde5 Rac8 26. Nf7+) 24... Nxe5 {[%emt 0:01:39]} (24... Rhf8 $14) 25. Nxe5 $2 {[%emt 0:00:33]} (25. dxe5+ $18 Kd7 26. e6+ Kd6 27. Nh4) 25... Rhe8 {[%emt 0:00:37]} ({Better is} 25... Rhf8 $1 $11) 26. Rf1 {[%emt 0:03:08]} (26. b4 $14) 26... c5 $11 {[%emt 0:02:26]} 27. Rf7 {[%emt 0:06:21]} Re7 {[%emt 0:12:02]} 28. dxc5+ {[%emt 0:01:36]} bxc5 {[%emt 0:00:42]} 29. Rxe7 {[%emt 0:00:36]} Kxe7 {[%emt 0:00:02]} 30. Rxc5 {[%emt 0:00:12][%mdl 4096] Endgame KRB-KRN} Kd6 {[%emt 0:00:53][%csl LRc5,LRe5]} 31. Nd3 {[%emt 0:00:09]} Bc6 {[%emt 0:04:15]} 32. b4 {[%emt 0:00:51]} g5 {[%emt 0:01:24]} 33. Kf2 {[%emt 0:00:53]} Re8 {[%emt 0:00:12]} 34. g4 {[%emt 0:02:49]} (34. Rc2 $11) 34... Bb5 $15 {[%emt 0:00:22][%mdl 1024] Black has compensation.} 35. Nc1 {[%emt 0:00:42]} Rf8+ {[%emt 0:02:33]} 36. Ke3 $1 {[%emt 0:00:17]} Rf1 {[%emt 0:00:22] White must now prevent ...Rd1.} 37. Rc2 {[%emt 0:01:46] [#]} (37. Nd3 $11 {keeps the balance.}) 37... Rd1 $1 $17 {[%emt 0:01:34] ...d4+ is the strong threat. Black is more active.} 38. Rc8 $2 {[%emt 0:03:21][%mdl 8192]} (38. Ne2 $17 {was necessary.}) 38... Bc4 $19 {[%emt 0:01:41] ...d4+ would be deadly.} 39. Rh8 $2 {[%emt 0:02:46]} (39. Ne2 Re1 40. Rd8+ Ke7 41. Rh8) 39... Rxc1 {[%emt 0:00:20]} 40. Rxh6+ {[%emt 0:00:12] KRB-KR} (40. Rd8+ $142 Ke5 41. Re8+ Kf6 42. Rh8) 40... Ke5 {[%emt 0:00:20]} 41. Rg6 {[%emt 0:30:17]} Rc3+ {[%emt 0:30:39]} 42. Kf2 {[%emt 0:00:04]} Rxa3 {[%emt 0:00:06]} (42... d4 $142 43. Rxg5+ Ke4) 43. h3 {[%emt 0:00:57]} (43. Rxg5+ $142 Kf4 {[%mdl 64] Deflection} 44. Rf5+ Kxg4 45. Rf8) 43... d4 {[%emt 0:00:31][%cal Bd5d4,Bd4d3][%mdl 32]} 44. Rxg5+ {[%emt 0:00:06]} Ke4 {[%emt 0:00:50]} 45. Rg7 {[%emt 0:00:49]} d3 {[%emt 0:00:11]} 46. Re7+ {[%emt 0:00:45]} Kd4 {[%emt 0:00:10] ( -> ...Ra2+)} 47. Rd7+ {[%emt 0:01:51]} Kc3 {[%emt 0:00:11]} (47... Bd5 $142 48. b5 Ra1 49. Kg3 d2 50. Kh4 d1=Q 51. Rh7 axb5 52. Re7 b4 53. Rh7 b3 54. Rh8 Qe1+ 55. g3 Qe7+ 56. g5 Qe4+ 57. g4 Rh1 58. Rh6 Rxh3+ {[%mdl 64] Decoy} 59. Kxh3 Qg2+ 60. Kh4 Qh2#) 48. h4 {[%emt 0:01:32]} d2 {[%emt 0:00:03] Black mates.} 49. Rxd2 {[%emt 0:00:40]} Kxd2 {[%emt 0:00:15]} 50. h5 {[%emt 0:00:04]} Bd3 {[%emt 0:00:49]} 51. g5 {[%emt 0:00:15]} Rb3 {[%emt 0:00:44]} 52. g6 {[%emt 0:00:11]} Rxb4 {[%emt 0:00:25]} 53. g7 {[%emt 0:00:11]} Bh7 {[%emt 0:00:20]} 54. Kf3 {[%emt 0:00:09]} Rb7 {[%emt 0:00:31]} 55. h6 {[%emt 0:00:05]} Rb6 {[%emt 0:00:20] What a bad dream for White.   Weighted Error Value: White=0.88/Black=0.43} 0-1

[Event "FIDE Zonal 4-2 Open 2023"]
[Site "Dimbroko"]
[Date "2023.03.27"]
[Round "1.8"]
[White "Amako Marc Arnold"]
[Black "Thomas, Saah"]
[Result "0-1"]
[ECO "B21"]
[WhiteElo "1647"]
[BlackElo "1916"]
[Annotator "TA"]
[PlyCount "104"]
[EventDate "2023.03.25"]
[EventType "swiss"]
[SourceTitle "playchess.com"]
[Source "ChessBase"]
[SourceQuality "1"]
[TimeControl "40/5400+30:1800+30"]

{[%evp 16,104,-31,-24,-23,-43,-8,-36,-19,-30,-23,-35,-17,-32,-16,-23,-26,-38,0,0,13,-44,-45,-43,-52,-52,-50,-50,-43,-45,-34,-74,-3,-4,-5,-16,0,-21,0,3,12,11,28,16,54,0,0,0,0,0,0,0,50,40,28,0,0,-137,-78,-363,-329,-578,-573,-923,-918,-2141,-1921,-1996,-1904,-2266,-2716,-2591,-1878,-1978,-1293,-12791,-5787,-29979,-29980,-29985,-29981,-29998,-29985,-29998,-29990,-29990,-29991,-29991,-29992,-29993,-29994]} 1. e4 {[%emt 0:00:14]} c5 {[%emt 0:00:23]} 2. d4 {[%emt 0:00:31]} cxd4 {[%emt 0:00:09]} 3. c3 {[%emt 0:00:07]} dxc3 {[%emt 0:00:28]} 4. Nxc3 {[%emt 0:00:06]} e6 {[%emt 0:00:16]} 5. Nf3 {[%emt 0:00:14]} Nc6 {[%emt 0:01:29]} 6. Bc4 {[%emt 0:00:13]} Bb4 {[%emt 0:00:20]} 7. O-O {[%emt 0:00:24]} Nge7 {[%emt 0:00:22]} 8. Bf4 {[%emt 0:00:52]} Bxc3 {[%emt 0:00:30]} 9. bxc3 {[%emt 0:00:26]} d5 {[%emt 0:00:21] B21: Sicilian: 2 f4 and Morra Gambit.} 10. exd5 {[%emt 0:02:02]} exd5 {[%emt 0:00:54]} 11. Bb5 {[%emt 0:00:43] This pair of bishops is nice.} O-O {[%emt 0:00:15] [#] Black is slightly better.} 12. Qd2 $146 {[%emt 0:03:06]} ({Predecessor:} 12. Bd3 Ng6 13. Bg5 Qa5 14. Qc2 Bg4 15. Nh4 Nce5 16. Nxg6 fxg6 17. Rfe1 Nxd3 18. Qxd3 {0-1 Hosnedl,L-Vokoun,O Kouty nad Desnou op-B 2012 (9)}) 12... Ng6 {[%emt 0:01:01]} 13. Bg3 {[%emt 0:01:20]} Be6 {[%emt 0:00:55]} 14. Rab1 {[%emt 0:02:56]} h6 {[%emt 0:02:32]} 15. Bd3 {[%emt 0:02:39]} Qd7 {[%emt 0:00:36]} 16. Rfc1 {[%emt 0:03:17]} f5 {[%emt 0:00:42][%cal Bf7f5,Bf5f4,Bf4f3][%mdl 32]} 17. Nd4 {[%emt 0:01:11]} Rae8 {[%emt 0:04:29]} 18. Nb5 {[%emt 0:09:15]} (18. a4 $11) 18... Nge5 {[%emt 0:06:05][%cal Of5f4] White must now prevent ...f4!} 19. Be2 {[%emt 0:04:45][%cal Ob5a7]} a6 {[%emt 0:02:36]} 20. Bxe5 {[%emt 0:06:58]} Nxe5 {[%emt 0:00:42]} 21. Nd4 {[%emt 0:01:31]} f4 {[%emt 0:00:51]} 22. Nf3 {[%emt 0:00:33]} Nc6 {[%emt 0:01:32]} 23. Nd4 {[%emt 0:01:46]} Bf7 {[%emt 0:03:41]} (23... Nxd4 $17 24. cxd4 Bf5) 24. Nxc6 $11 {[%emt 0:02:19]} bxc6 {[%emt 0:01:58]} 25. Bxa6 {[%emt 0:00:32] [#]} f3 $1 {[%emt 0:01:19]} 26. g3 {[%emt 0:01:29]} (26. Rb7 Qd6) 26... Re4 {[%emt 0:04:20]} (26... Ra8 $5 {[%cal Ra8a6]} 27. Rb7 Qc8 28. Rxf7 Rxa6 29. Rxf8+ Qxf8 $11) 27. Rb4 {[%emt 0:04:59] Strongly threatening Rxe4.} Qa7 {[%emt 0:00:18]} 28. Bd3 {[%emt 0:01:48]} Re6 {[%emt 0:01:19]} 29. Rf4 {[%emt 0:02:45]} Ra8 {[%emt 0:01:11]} 30. Rxf3 {[%emt 0:05:19]} (30. a4 $14) 30... Qxa2 {[%emt 0:00:29]} 31. Qxa2 {[%emt 0:02:54]} ({Much weaker is} 31. Qf4 Rf6 32. Bf5 Bg6 $17) 31... Rxa2 {[%emt 0:00:02]} 32. c4 {[%emt 0:00:19]} d4 {[%emt 0:01:40]} 33. c5 {[%emt 0:00:09]} Rf6 {[%emt 0:00:34]} (33... Ra8 $11) 34. Rxf6 $14 {[%emt 0:01:20]} gxf6 {[%emt 0:00:02][%mdl 4096] Endgame KRB-KRB} 35. Bc4 {[%emt 0:01:29]} (35. Be4 $5 {[%cal Rc1d1]}) 35... Ra4 {[%emt 0:00:13]} 36. Bxf7+ {[%emt 0:01:18]} (36. Be2 $11 {keeps the balance.}) 36... Kxf7 $11 {[%emt 0:00:09] KR-KR} 37. Kf1 $2 {[%emt 0:00:16][%mdl 8192] This move loses the game for White.} (37. Re1 $17) 37... Ke6 $19 {[%emt 0:00:02]} 38. Re1+ $2 {[%emt 0:08:01]} (38. Ke2) 38... Kd5 {[%emt 0:00:33]} 39. Re7 {[%emt 0:00:24]} Kxc5 {[%emt 0:00:07]} 40. Re6 {[%emt 0:00:22]} d3 {[%emt 0:00:05] ...Ra1+ would be deadly.} 41. Ke1 {[%emt 0:30:28]} Ra2 {[%emt 0:31:06]} 42. Rxf6 {[%emt 0:02:56]} Kd5 {[%emt 0:00:02]} 43. Rxh6 {[%emt 0:02:17]} c5 {[%emt 0:00:02][%cal Bc6c5,Bc5c4,Bc4c3,Bc3c2][%mdl 32] Hoping for ...c4.} 44. Rh8 {[%emt 0:01:44]} Re2+ {[%emt 0:00:20][%mdl 64] [#] Deflection} 45. Kd1 {[%emt 0:01:28]} Rxf2 {[%emt 0:00:17] ( -> ...c4)} 46. h4 {[%emt 0:00:13]} c4 {[%emt 0:00:05] Black mates.} 47. h5 {[%emt 0:00:15]} Kd4 {[%emt 0:00:27]} 48. Ra8 {[%emt 0:02:48]} Rh2 {[%emt 0:00:36]} 49. g4 {[%emt 0:00:45]} c3 {[%emt 0:00:47][%cal Rh2h1]} 50. Rd8+ {[%emt 0:01:02]} Ke3 {[%emt 0:00:03][%cal Rh2h1]} 51. Re8+ {[%emt 0:01:20]} Kf4 {[%emt 0:00:11]} 52. g5 {[%emt 0:00:30]} c2+ {[%emt 0:00:19] Weighted Error Value: White=0.72/Black=0.22 (precise)} 0-1

[Event "FIDE Zonal 4-2 Open 2023"]
[Site "Dimbroko"]
[Date "2023.03.27"]
[Round "1.9"]
[White "Bobby Ballah"]
[Black "Koita Idrissa"]
[Result "1-0"]
[ECO "B22"]
[WhiteElo "1914"]
[BlackElo "1611"]
[Annotator "TA"]
[PlyCount "53"]
[EventDate "2023.03.25"]
[EventType "swiss"]
[SourceTitle "playchess.com"]
[Source "ChessBase"]
[SourceQuality "1"]
[TimeControl "40/5400+30:1800+30"]

{[%evp 19,53,115,113,131,122,98,222,131,277,187,231,192,185,186,191,193,662,665,658,650,651,577,578,570,1003,976,896,800,1164,921,29965,11485,6387,915,29997,1341]} 1. e4 {[%emt 0:00:13]} c5 {[%emt 0:00:29]} 2. c3 {[%emt 0:01:50]} Nc6 {[%emt 0:00:17]} 3. d4 {[%emt 0:00:05]} cxd4 {[%emt 0:00:26]} 4. cxd4 {[%emt 0:00:06]} d5 {[%emt 0:00:19]} 5. exd5 {[%emt 0:03:18]} Qxd5 {[%emt 0:00:22]} 6. Nf3 {[%emt 0:00:05]} e6 {[%emt 0:01:40]} 7. Nc3 {[%emt 0:00:35]} Bb4 {[%emt 0:00:19]} 8. Bd3 {[%emt 0:02:20]} Bxc3+ {[%emt 0:02:44]} 9. bxc3 {[%emt 0:00:09]} Nge7 {[%emt 0:01:10]} 10. O-O {[%emt 0:00:20][%cal Bh1f1,Bf1e1,Be1e6][%mdl 32]} O-O {[%emt 0:00:25]} 11. Re1 {[%emt 0:07:37] B22: Sicilian: 2 c3.} Qh5 {[%emt 0:02:07]} 12. Ba3 {[%emt 0:01:30] [#]} Bd7 $146 {[%emt 0:02:24]} (12... Rd8 $16) ({Predecessor:} 12... Rd8 13. c4 Ng6 14. Qd2 Qa5 15. Qxa5 Nxa5 16. Rad1 Bd7 17. Bb4 Nc6 18. Bc3 Nce7 {½-½ Lorenz,D-Studer,K Liechtenstein op 11th 1993 (1)}) 13. Qb3 {[%emt 0:02:52]} (13. Rb1 $18) 13... Rab8 {[%emt 0:00:55] This move loses the game for Black.} (13... Qa5 $16 {keeps fighting.} 14. Ne5 (14. Qxb7 Qxa3 15. Qxd7 Qxc3 $11) 14... Rfd8) 14. Ne5 {[%emt 0:00:27]} Rfd8 {[%emt 0:00:59]} 15. Nxd7 {[%emt 0:04:02]} Rxd7 {[%emt 0:00:20] [#]} 16. Rxe6 $1 {[%emt 0:02:07][%cal Oa3e7][%mdl 512] Threatens to win with Bxe7!} Na5 {[%emt 0:01:13] [#]} 17. Qa4 {[%emt 0:00:08]} (17. Rxe7 $2 Nxb3 18. axb3 Rxe7 19. Bxe7 Qh6 $19) 17... Rxd4 {[%emt 0:03:36]} (17... b5 18. Bxb5 (18. Rxe7 bxa4 19. Rxd7 Qg5 $16) (18. Qxa5 fxe6 19. Bc5 Nd5 $11) 18... Qxb5 19. Qxb5 (19. Rxe7 $2 {too greedy.} Qxa4 20. Rxd7 Qxd7 $19) 19... Rxb5 20. Rxe7 Rxe7 21. Bxe7 Rb2) 18. cxd4 $18 {[%emt 0:00:30][%cal Bc3d4,Bd4d5,Bd5d6][%mdl 32]} fxe6 {[%emt 0:00:45]} 19. Bxe7 {[%emt 0:00:07] A strong pair of Bishops.} Nc6 {[%emt 0:00:29]} 20. Bd6 {[%emt 0:01:16]} Rd8 {[%emt 0:00:38]} 21. Bc5 {[%emt 0:01:12]} e5 {[%emt 0:01:33]} 22. d5 {[%emt 0:01:44]} Nd4 {[%emt 0:04:34]} 23. Bxd4 {[%emt 0:00:10] d6 is the strong threat.} exd4 {[%emt 0:00:17]} 24. Qxd4 {[%emt 0:00:56]} b6 {[%emt 0:00:34]} 25. d6 {[%emt 0:00:28] Threatening mate with Re1.} Qc5 {[%emt 0:00:38]} 26. Qh4 {[%emt 0:01:17]} h6 {[%emt 0:00:47]} 27. Qxd8+ {[%emt 1:08:36] Weighted Error Value: White=0.43/Black=1.47} 1-0